bitfinex/quotes_BTCUSD_20251120
["timestamp","ask_amount","ask_price","bid_price","bid_amount"]
[1763647355365,0.01094654,91353.0,91342.0,0.01094786]
[1763647355622,0.01094774,91343.0,91337.0,0.01247]
[1763647355823,0.01094774,91343.0,91274.0,0.07838384]
[1763647355824,0.01094858,91336.0,91316.0,0.01095098]
[1763647356067,0.0109487,91335.0,91326.0,0.01094978]
[1763647356260,0.01094642,91354.0,91332.0,0.21898129]
[1763647356432,0.01094594,91358.0,91345.0,0.0109475]
[1763647356647,0.3339457,91360.0,91345.0,0.0109475]
[1763647356648,0.00376,91351.0,91350.0,0.0109469]
[1763647356839,0.00376,91351.0,91350.0,0.00042139]
[1763647357054,0.0299091,91351.0,91350.0,0.00042139]
[1763647357346,0.00376,91351.0,91350.0,0.00042139]
[1763647357730,0.25006271,91351.0,91350.0,0.00042139]
[1763647357903,0.22269575,91351.0,91350.0,0.00042139]
[1763647358095,0.54569575,91351.0,91350.0,0.00042139]
[1763647358305,0.37886249,91351.0,91327.0,0.00023428]
[1763647358511,0.21899088,91328.0,91327.0,0.00023428]
[1763647358720,0.22275088,91328.0,91327.0,0.00023428]
[1763647359565,0.00376,91328.0,91327.0,0.00023428]
[1763647359839,0.02737176,91335.0,91330.0,0.0109493]
[1763647360017,0.00376,91334.0,91327.0,0.01118394]
[1763647360215,0.26105978,91334.0,91327.0,0.00023428]
[1763647360395,0.01470882,91334.0,91327.0,0.00023428]
[1763647360794,0.03113206,91334.0,91327.0,0.01118394]
[1763647360974,0.00376,91334.0,91329.0,0.22993636]
[1763647361321,0.00376,91334.0,91328.0,0.01094954]
[1763647361544,0.00376,91334.0,91332.0,0.21897952]
[1763647361743,0.00376,91344.0,91342.0,0.01094786]
[1763647361871,0.00376,91344.0,91342.0,0.22990395]
[1763647362363,0.00042157,91351.0,91350.0,0.21893814]
[1763647362567,0.00042157,91351.0,91350.0,0.24593814]
[1763647362692,0.00042157,91351.0,91350.0,0.26986814]
[1763647363703,0.00042157,91351.0,91350.0,0.01175]
[1763647363886,0.01094702,91349.0,91337.0,0.02393]
[1763647364060,0.00376,91348.0,91345.0,0.0109475]
[1763647364269,0.00376,91348.0,91339.0,0.01094822]
[1763647364270,0.03831542,91347.0,91339.0,0.01094822]
[1763647364476,0.22270401,91348.0,91329.0,0.01094942]
[1763647364477,0.01094822,91339.0,91329.0,0.01094942]
[1763647364674,0.22990178,91344.0,91335.0,0.0109487]
[1763647364842,0.02736936,91343.0,91340.0,0.0109481]
[1763647365050,0.01757836,91348.0,91346.0,0.21894677]
[1763647365246,0.00376,91348.0,91340.0,0.22990772]
[1763647365477,0.01610551,91351.0,91346.0,0.21894677]
[1763647365690,0.02778853,91351.0,91347.0,0.01094726]
[1763647365893,0.00376,91350.0,91349.0,0.21893974]
[1763647366107,0.00042157,91351.0,91349.0,0.21893974]
[1763647366326,0.00042157,91351.0,91350.0,0.03918]
[1763647366569,0.00042157,91351.0,91350.0,0.05549339]
[1763647366943,0.00042157,91351.0,91350.0,0.03918]
[1763647367726,0.00142157,91351.0,91350.0,0.03918]
[1763647368126,0.02735738,91383.0,91377.0,0.01094367]
[1763647368354,0.00376,91382.0,91370.0,0.01094451]
[1763647368511,0.01470307,91382.0,91347.0,0.01175]
[1763647368711,0.01470307,91382.0,91364.0,0.01094523]
[1763647368712,0.70661292,91380.0,91364.0,0.01094523]
[1763647368912,0.70661292,91380.0,91349.0,0.01631339]
[1763647368913,0.01094355,91378.0,91361.0,0.21890986]
[1763647369122,0.01094511,91365.0,91354.0,0.01094642]
[1763647369324,0.03112307,91364.0,91362.0,0.21890785]
[1763647369572,0.01470523,91364.0,91354.0,0.01094642]
[1763647369776,0.0232287,91363.0,91362.0,0.21890939]
[1763647369981,0.00376,91364.0,91362.0,0.21890939]
[1763647370352,0.02735948,91376.0,91374.0,0.21887996]
[1763647370577,0.01094199,91391.0,91374.0,0.21887996]
[1763647370578,0.01094139,91396.0,91377.0,0.01094367]
[1763647370821,0.00376,91382.0,91374.0,0.01094403]
[1763647371024,0.22980765,91381.0,91375.0,0.01094391]
[1763647371275,0.00376,91382.0,91376.0,0.22981842]
[1763647371489,0.01470307,91382.0,91377.0,0.01094367]
[1763647371732,0.001,91376.0,91367.0,0.01094487]
[1763647371942,0.001,91376.0,91374.0,0.21888015]
[1763647372161,0.001,91376.0,91373.0,0.01094415]
[1763647372379,0.001,91376.0,91366.0,0.01094499]
[1763647372380,0.2298376,91369.0,91350.0,0.04024339]
[1763647372598,0.21890979,91362.0,91355.0,0.0109463]
[1763647372818,0.01094618,91356.0,91345.0,0.0109475]
[1763647373043,0.01094618,91356.0,91342.0,0.01094786]
[1763647373044,0.21893011,91354.0,91342.0,0.21895533]
[1763647373267,0.21892856,91354.0,91343.0,0.01094774]
[1763647373486,0.00376,91355.0,91346.0,0.01094738]
[1763647373702,0.22987593,91354.0,91348.0,0.01094714]
[1763647373920,0.00376,91355.0,91349.0,0.01094702]
[1763647374121,0.01094642,91354.0,91346.0,0.22989356]
[1763647374348,0.01094726,91347.0,91332.0,0.01094906]
[1763647374552,0.0109475,91345.0,91339.0,0.21896276]
[1763647374762,0.22989716,91346.0,91341.0,0.01094798]
[1763647374972,0.01716851,91353.0,91340.0,0.22990815]
[1763647374973,0.01094523,91364.0,91350.0,0.0109469]
[1763647375213,0.01094666,91352.0,91338.0,0.2299146]
[1763647375421,0.001,91355.0,91347.0,0.01094726]
[1763647375628,0.001,91355.0,91348.0,0.01094714]
[1763647375862,0.001,91355.0,91330.0,0.02393]
[1763647375863,0.2189725,91336.0,91314.0,0.02393]
[1763647376067,0.00376,91335.0,91318.0,0.22996382]
[1763647376272,0.21897776,91334.0,91323.0,0.01175]
[1763647376537,0.2189765,91334.0,91323.0,0.01175]
[1763647376958,0.01094858,91336.0,91323.0,0.01175]
[1763647377172,0.00376,91333.0,91319.0,0.01175]
[1763647377612,0.00376,91333.0,91303.0,0.01175]
[1763647377819,0.00376,91333.0,91305.0,0.0109523]
[1763647378031,0.05586249,91333.0,91303.0,0.01175]
[1763647378302,0.37886249,91333.0,91305.0,0.0109523]
[1763647378448,0.39896151,91333.0,91307.0,0.01095206]
[1763647378652,0.39896151,91333.0,91308.0,0.01095194]
[1763647378847,0.34309902,91333.0,91323.0,0.01175]
[1763647379048,0.32676,91333.0,91323.0,0.02270014]
[1763647379275,0.21897668,91337.0,91323.0,0.02270014]
[1763647379276,0.08097661,91358.0,91332.0,0.01137063]
[1763647379476,0.21895292,91344.0,91332.0,0.00042157]
[1763647379676,0.01094846,91337.0,91332.0,0.00042157]
[1763647379895,0.001,91333.0,91332.0,0.00042157]
[1763647380476,0.01094762,91344.0,91332.0,0.00042157]
[1763647380676,0.00999999,91360.0,91332.0,0.00042157]
[1763647380677,0.21896982,91337.0,91332.0,0.00042157]
[1763647380878,0.21897851,91334.0,91332.0,0.00042157]
[1763647381082,0.21897851,91334.0,91327.0,0.00023428]
[1763647381083,0.0109487,91335.0,91327.0,0.00023428]
[1763647381084,0.54199088,91328.0,91327.0,0.00023428]
[1763647381284,0.21907484,91293.0,91279.0,0.01175]
[1763647381484,0.00376,91293.0,91284.0,0.01095482]
[1763647381663,0.00376,91293.0,91287.0,0.01095446]
[1763647382034,0.0109511,91315.0,91303.0,0.01095254]
[1763647382259,0.00376,91314.0,91293.0,0.01664]
[1763647382440,0.00418131,91314.0,91307.0,0.01095206]
[1763647382593,0.00042131,91314.0,91313.0,0.02892]
[1763647383225,0.00042131,91314.0,91313.0,0.05363]
[1763647383589,0.01094798,91341.0,91313.0,0.05363]
[1763647383590,0.02736786,91348.0,91337.0,0.01094846]
[1763647383799,2.0,91375.0,91363.0,0.01094534]
[1763647384002,0.05119982,91374.0,91358.0,0.01094594]
[1763647384210,0.05119982,91374.0,91335.0,0.02471]
[1763647384211,0.02736008,91374.0,91365.0,0.22984731]
[1763647384426,0.02736008,91374.0,91372.0,0.21888411]
[1763647384623,0.0001264,91375.0,91369.0,0.01094463]
[1763647384624,0.00376,91373.0,91370.0,0.01094451]
[1763647384826,0.0001264,91375.0,91372.0,0.01094427]
[1763647385021,0.01094511,91365.0,91352.0,0.01094666]
[1763647385223,0.01094511,91365.0,91336.0,0.02471]
[1763647385224,0.01094606,91357.0,91336.0,0.02471]
[1763647385469,0.0109475,91345.0,91338.0,0.01094834]
[1763647385680,0.01094546,91362.0,91349.0,0.01094702]
[1763647385957,0.56168917,91390.0,91355.0,0.0109463]
[1763647386092,0.01094403,91374.0,91364.0,0.01094523]
[1763647386295,0.01094451,91370.0,91362.0,0.01094546]
[1763647386519,0.01094463,91369.0,91364.0,0.01094523]
[1763647386721,0.01107091,91370.0,91360.0,0.0109457]
[1763647386895,0.0001264,91370.0,91364.0,0.01094523]
[1763647387095,0.0001264,91370.0,91361.0,0.01094558]
[1763647387096,0.00376,91369.0,91361.0,0.01094558]
[1763647387326,0.01470463,91369.0,91364.0,0.01094523]
[1763647387525,0.01094475,91368.0,91358.0,0.01094594]
[1763647387770,0.00376,91369.0,91333.0,0.43795757]
[1763647387771,0.00376,91369.0,91365.0,0.01094511]
[1763647387978,0.0001264,91370.0,91367.0,0.21889741]
[1763647388147,0.00376,91368.0,91367.0,0.22984228]
[1763647388357,0.0001264,91370.0,91369.0,0.21889262]
[1763647388560,0.0038864,91370.0,91369.0,0.23553262]
[1763647388971,0.0038864,91370.0,91369.0,0.01664]
[1763647389275,0.0038864,91370.0,91369.0,0.02892]
[1763647389501,0.0038864,91370.0,91369.0,0.01228]
[1763647389651,0.0038864,91370.0,91360.0,0.79691654]
[1763647389652,0.01094475,91368.0,91357.0,0.01094606]
[1763647389862,0.22983755,91369.0,91362.0,0.22985468]
[1763647390067,0.01483091,91370.0,91362.0,0.22985468]
[1763647390068,0.02736187,91368.0,91362.0,0.22985468]
[1763647390412,0.25720322,91368.0,91363.0,0.01094534]
[1763647390611,0.0038864,91370.0,91365.0,0.01094511]
[1763647390837,0.0038864,91370.0,91367.0,0.01094487]
[1763647391038,0.0001264,91370.0,91369.0,0.01228]
[1763647391238,0.0038864,91370.0,91369.0,0.02892]
[1763647391412,0.0038864,91370.0,91369.0,0.01228]
[1763647391785,0.0038864,91370.0,91350.0,0.56168917]
[1763647391985,0.0038864,91370.0,88733.0,0.2]
[1763647391986,0.0038864,91370.0,91334.0,0.01228]
[1763647392192,0.0038864,91370.0,91337.0,0.01094846]
[1763647392193,0.01094786,91342.0,91337.0,0.01094846]
[1763647392399,0.3268864,91370.0,91338.0,0.04102339]
[1763647392400,0.02736157,91369.0,91338.0,0.04102339]
[1763647392612,0.02887412,91386.0,91338.0,0.04102339]
[1763647392613,0.01094379,91376.0,91365.0,0.01094511]
[1763647392811,0.01094475,91368.0,91361.0,0.01094558]
[1763647393017,0.00376,91367.0,91364.0,0.01094523]
[1763647393429,0.0038864,91367.0,91365.0,0.21890145]
[1763647393640,0.0038864,91367.0,91359.0,0.22986035]
[1763647393641,0.2188998,91366.0,91354.0,0.01228]
[1763647393873,0.01094523,91364.0,91357.0,0.01094606]
[1763647394070,0.0038864,91367.0,91364.0,0.22984877]
[1763647394348,0.0001264,91367.0,91366.0,0.01664]
[1763647394546,0.0038864,91367.0,91366.0,0.01664]
[1763647394746,0.0001264,91367.0,91366.0,0.04135]
[1763647395356,0.0001264,91367.0,91366.0,0.2355398]
[1763647395562,0.0001264,91367.0,91366.0,0.2602498]
[1763647397578,1.896e-05,91367.0,91366.0,0.2602498]
[1763647397865,0.00361455,91377.0,91376.0,0.21887585]
[1763647398549,0.00361455,91377.0,91376.0,0.23551585]
[1763647398766,0.00361455,91377.0,91372.0,0.22982899]
[1763647399014,0.00361455,91377.0,91354.0,0.03699]
[1763647399015,0.01094475,91368.0,91354.0,0.03699]
[1763647399220,0.21892616,91355.0,91354.0,0.0001264]
[1763647399438,0.22268616,91355.0,91354.0,0.0001264]
[1763647400589,0.00376,91355.0,91354.0,0.0001264]
[1763647400793,0.23607576,91363.0,91355.0,0.0109463]
[1763647400794,0.01716746,91363.0,91355.0,0.0109463]
[1763647401030,0.01716746,91363.0,91354.0,0.0001264]
[1763647401031,0.01094606,91357.0,91354.0,0.0001264]
[1763647401247,0.21892616,91355.0,91354.0,0.0001264]
[1763647402076,0.0109457,91360.0,91354.0,0.0001264]
[1763647402244,0.001,91355.0,91354.0,0.01107282]
[1763647402572,0.001,91355.0,91354.0,0.23000088]
[1763647402774,0.001,91355.0,91354.0,0.24664088]
[1763647402946,0.00376,91358.0,91354.0,0.24664088]
[1763647402947,0.00376,91358.0,91357.0,0.21892137]
[1763647403268,0.00376,91358.0,91356.0,0.21892343]
[1763647403513,0.00376,91358.0,91354.0,0.01107282]
[1763647403514,0.01470594,91358.0,91354.0,0.0001264]
[1763647403726,0.00376,91358.0,91356.0,0.21892153]
[1763647404134,0.00376,91358.0,91357.0,0.04135]
[1763647404745,0.01094331,91380.0,91357.0,0.04135]
[1763647404746,0.01094331,91380.0,91376.0,0.01094379]
[1763647404949,0.2188785,91375.0,91373.0,0.01228]
[1763647405156,0.01094439,91371.0,91365.0,0.21890106]
[1763647405363,0.01094463,91369.0,91364.0,0.01094523]
[1763647405591,0.22983754,91369.0,91364.0,0.22984925]
[1763647405832,0.22984068,91368.0,91363.0,0.01094534]
[1763647406033,0.01094558,91361.0,91356.0,0.22986952]
[1763647406234,0.01094558,91361.0,91353.0,0.01094654]
[1763647406440,0.01094558,91361.0,91340.0,0.56168917]
[1763647406441,0.21892616,91355.0,91341.0,0.01094798]
[1763647406596,0.22268616,91355.0,91339.0,0.01094822]
[1763647406800,0.22268616,91355.0,91335.0,0.0109487]
[1763647407156,0.22268616,91355.0,91345.0,0.01228]
[1763647407718,0.00376,91355.0,91346.0,0.01094738]
[1763647407920,0.00376,91355.0,91348.0,0.01094714]
[1763647408125,0.00376,91355.0,91345.0,0.23122791]
[1763647408126,0.00376,91355.0,91345.0,0.01228]
[1763647408332,0.00376,91355.0,91295.0,0.07829384]
[1763647408333,0.21901007,91320.0,91295.0,0.07829384]
[1763647408538,0.21901007,91320.0,91319.0,0.00036075]
[1763647408539,0.00376,91320.0,91319.0,0.00036075]
[1763647409772,0.00476,91320.0,91319.0,0.00036075]
[1763647409992,0.00476,91320.0,91292.0,0.0013]
[1763647410203,0.00476,91320.0,91292.0,0.00172131]
[1763647410204,0.21907484,91293.0,91292.0,0.00172131]
[1763647410357,0.22283484,91293.0,91292.0,0.00172131]
[1763647410529,0.01095314,91298.0,91292.0,0.00172131]
[1763647410530,0.323,91298.0,91292.0,0.00172131]
[1763647410740,0.06210248,91320.0,91294.0,0.01095362]
[1763647410741,0.00376,91297.0,91294.0,0.01095362]
[1763647410939,0.22998706,91310.0,91298.0,0.01095314]
[1763647410940,0.01095194,91308.0,91298.0,0.01095314]
[1763647411142,0.01095338,91296.0,91292.0,0.00172131]
[1763647411369,0.0147135,91295.0,91292.0,0.00172131]
[1763647411567,0.01095326,91297.0,91292.0,0.00172131]
[1763647411765,0.323,91304.0,91297.0,0.01095326]
[1763647412043,0.01095134,91313.0,91301.0,0.01095278]
[1763647412259,0.01095134,91313.0,91298.0,0.23001598]
[1763647412260,0.01095218,91306.0,91300.0,0.0109529]
[1763647412468,0.01095062,91319.0,91309.0,0.01095182]
[1763647412667,0.57168916,91340.0,91310.0,0.0109517]
[1763647412668,0.0109499,91325.0,91310.0,0.0109517]
[1763647412807,0.01095194,91308.0,91299.0,0.01095302]
[1763647413002,0.01095206,91307.0,91297.0,0.01239]
[1763647413205,0.00376,91306.0,91305.0,0.0109523]
[1763647413893,0.0109523,91305.0,91290.0,0.23003558]
[1763647414072,0.01095302,91299.0,91294.0,0.01095362]
[1763647414209,0.01095302,91299.0,91292.0,0.220798]
[1763647414210,0.21906284,91298.0,91292.0,0.00172131]
[1763647414420,0.01095302,91299.0,91293.0,0.01095374]
[1763647414624,0.01095254,91303.0,91296.0,0.01095338]
[1763647414825,0.00376,91302.0,91299.0,0.23001282]
[1763647415240,0.00376,91302.0,91298.0,0.01095314]
[1763647415448,0.0109535,91295.0,91292.0,0.00172131]
[1763647415667,0.55302383,91295.0,91292.0,0.00172131]
[1763647416253,0.57020283,91295.0,91292.0,0.00172131]
[1763647416455,0.54207484,91293.0,91292.0,0.00172131]
[1763647418334,2.59417733,91293.0,91292.0,0.00172131]
[1763647418951,0.59793733,91293.0,91292.0,0.00172131]
[1763647419156,0.24820283,91295.0,91292.0,0.03997131]
[1763647419157,0.018179,91295.0,91292.0,0.03997131]
[1763647419372,0.00376,91294.0,91292.0,0.00172131]
[1763647419797,0.001,91293.0,91292.0,0.00172131]
[1763647420212,0.22383484,91293.0,91292.0,0.00172131]
[1763647420553,0.22283484,91293.0,91292.0,0.00172131]
[1763647422956,0.00476,91293.0,91292.0,0.00172131]
[1763647423182,0.00999999,91330.0,91302.0,0.21905325]
[1763647423385,0.22896325,91340.0,91304.0,0.01095242]
[1763647423386,0.00376,91329.0,91304.0,0.01095242]
[1763647423653,0.00376,91329.0,91292.0,0.00251236]
[1763647423654,0.21907484,91293.0,91292.0,0.00172131]
[1763647423857,0.00476,91293.0,91292.0,0.00172131]
[1763647424058,0.03214435,91293.0,91292.0,0.00172131]
[1763647424267,0.00376,91293.0,91292.0,0.01267517]
[1763647424496,0.32849491,91326.0,91292.0,0.01267517]
[1763647424497,0.01095122,91314.0,91307.0,0.01095206]
[1763647424705,0.01095122,91314.0,91297.0,0.01095326]
[1763647424706,0.0109517,91310.0,91297.0,0.01095326]
[1763647424914,0.01095182,91309.0,91300.0,0.0109529]
[1763647425108,0.01095242,91304.0,91299.0,0.01095302]
[1763647425310,0.01095242,91304.0,91292.0,0.00172131]
[1763647425311,0.01095278,91301.0,91292.0,0.00172131]
[1763647425523,0.01095278,91301.0,91296.0,0.219066]
[1763647425754,0.01095278,91301.0,91292.0,0.01267517]
[1763647425755,0.2190748,91294.0,91292.0,0.00172131]
[1763647425906,0.02738435,91293.0,91292.0,0.00172131]
[1763647426308,0.03833725,91295.0,91292.0,0.00172131]
[1763647426513,0.001,91293.0,91292.0,0.00172131]
[1763647426928,0.24645919,91293.0,91292.0,0.00172131]
[1763647427252,0.59417733,91293.0,91292.0,0.00172131]
[1763647427659,0.59417733,91293.0,91274.0,9e-05]
[1763647427660,0.21911804,91275.0,91274.0,9e-05]
[1763647427815,0.00418087,91275.0,91274.0,9e-05]
[1763647428021,0.00042087,91275.0,91274.0,9e-05]
[1763647428266,0.00418087,91275.0,91274.0,9e-05]
[1763647428619,0.00042087,91275.0,91274.0,9e-05]
[1763647428848,0.00418087,91275.0,91274.0,9e-05]
[1763647429080,0.00418087,91275.0,91274.0,0.00140869]
[1763647429282,0.22329891,91275.0,91274.0,0.00140869]
[1763647430297,0.5984014,91275.0,91274.0,0.00140869]
[1763647430506,0.61839777,91275.0,91274.0,0.00140869]
[1763647430712,0.56353528,91275.0,91274.0,0.00140869]
[1763647430910,0.56729528,91275.0,91274.0,0.00140869]
[1763647431083,0.56629528,91275.0,91274.0,0.00140869]
[1763647431340,0.56629528,91275.0,91236.0,0.01096058]
[1763647431341,0.01095962,91244.0,91236.0,0.01096058]
[1763647431527,0.00376,91243.0,91239.0,0.01096022]
[1763647431722,2.0,91274.0,91225.0,0.01239]
[1763647431723,0.323,91270.0,91251.0,0.01095878]
[1763647431926,0.55210249,91272.0,91252.0,0.01095866]
[1763647431927,0.01095794,91258.0,91252.0,0.01095866]
[1763647432128,0.323,91274.0,91259.0,0.01095782]
[1763647432329,0.0109571,91265.0,91260.0,0.23011176]
[1763647432697,0.0109571,91265.0,91264.0,0.23010168]
[1763647432698,0.00042087,91265.0,91264.0,0.23010168]
[1763647432901,0.00376,91264.0,91261.0,0.01095758]
[1763647433105,0.00042087,91265.0,91261.0,0.01095758]
[1763647433106,0.00042087,91265.0,91262.0,0.23010672]
[1763647433311,0.00042087,91265.0,91264.0,0.21914446]
[1763647433520,0.01095746,91262.0,91254.0,0.01095842]
[1763647433734,0.00042087,91265.0,91262.0,0.01095746]
[1763647433938,0.00376,91261.0,91256.0,0.01095818]
[1763647434161,0.00376,91261.0,91259.0,0.21915416]
[1763647434365,0.0109577,91260.0,91250.0,0.0109589]
[1763647434567,0.00376,91261.0,91259.0,0.21915624]
[1763647434720,0.00376,91261.0,91257.0,0.01095806]
[1763647435123,0.00376,91261.0,91245.0,0.21918815]
[1763647435124,0.0109577,91260.0,91246.0,0.01095938]
[1763647435326,0.00376,91259.0,91248.0,0.01095914]
[1763647435675,0.01095866,91252.0,91244.0,0.01095962]
[1763647435900,0.01095878,91251.0,91244.0,0.01095962]
[1763647436088,0.01095878,91251.0,91242.0,0.21919729]
[1763647436089,0.01095914,91248.0,91242.0,0.21919729]
[1763647436253,0.00376,91247.0,91241.0,0.01095998]
[1763647436454,0.01471926,91247.0,91239.0,0.01096022]
[1763647436658,0.01471926,91247.0,91231.0,0.025]
[1763647436659,0.0109601,91240.0,91231.0,0.025]
[1763647436865,0.0109601,91240.0,91235.0,0.0109607]
[1763647437071,0.01095998,91241.0,91237.0,0.01096046]
[1763647437245,0.01095998,91241.0,91231.0,0.2551847]
[1763647437246,0.01096022,91239.0,91231.0,0.2551847]
[1763647437427,0.01095974,91243.0,91239.0,0.00102629]
[1763647437633,0.23016225,91240.0,91232.0,0.21922132]
[1763647437832,0.00376,91247.0,91234.0,0.01096082]
[1763647438046,0.01096082,91234.0,91231.0,0.025]
[1763647438254,0.21922132,91232.0,91231.0,0.025]
[1763647438667,0.02009171,91232.0,91231.0,0.025]
[1763647439120,0.24349364,91232.0,91231.0,0.025]
[1763647439327,0.02051232,91232.0,91231.0,0.025]
[1763647439745,0.00418061,91232.0,91231.0,0.025]
[1763647439962,0.02426922,91232.0,91231.0,0.025]
[1763647440178,0.02426905,91232.0,91231.0,0.025]
[1763647441004,0.02526905,91232.0,91231.0,0.025]
[1763647441513,0.02426905,91232.0,91231.0,0.025]
[1763647441718,0.02526905,91232.0,91231.0,0.025]
[1763647441924,0.24449037,91232.0,91231.0,0.025]
[1763647442147,0.00518061,91232.0,91231.0,0.025]
[1763647442350,0.00142061,91232.0,91231.0,0.025]
[1763647442564,0.00142061,91232.0,91231.0,0.08463952]
[1763647442745,0.00142061,91232.0,91231.0,0.10095291]
[1763647443192,0.00042061,91232.0,91231.0,0.10095291]
[1763647443397,0.03853307,91282.0,91231.0,0.10095291]
[1763647443398,0.01095698,91266.0,91247.0,0.01095926]
[1763647443575,0.01095842,91254.0,91247.0,0.00012614]
[1763647443821,0.01095758,91261.0,91252.0,0.01095866]
[1763647443998,0.01095722,91264.0,91258.0,0.01095794]
[1763647443999,0.02739335,91263.0,91258.0,0.01095794]
[1763647444237,0.02008548,91262.0,91259.0,0.21915494]
[1763647444448,0.00376,91265.0,91247.0,0.00012614]
[1763647444449,0.01095866,91252.0,91247.0,0.00012614]
[1763647444652,0.02384548,91251.0,91247.0,0.00012614]
[1763647444826,0.21918288,91248.0,91247.0,0.00012614]
[1763647445868,0.23013698,91250.0,91247.0,0.00012614]
[1763647445869,0.0109589,91250.0,91247.0,0.00012614]
[1763647446076,0.23927912,91249.0,91247.0,0.00012614]
[1763647446280,0.02739786,91248.0,91247.0,0.00012614]
[1763647446528,0.04749526,91248.0,91247.0,0.00012614]
[1763647447363,0.42259775,91248.0,91247.0,0.00012614]
[1763647447573,2.44519989,91248.0,91247.0,0.00012614]
[1763647447780,2.44519989,91248.0,91231.0,0.012]
[1763647447781,0.59432381,91232.0,91231.0,0.012]
[1763647447981,0.66830728,91232.0,91231.0,0.012]
[1763647448185,0.66830728,91232.0,91231.0,0.01326098]
[1763647448388,2.66830728,91232.0,91231.0,0.01326098]
[1763647448989,2.66830728,91232.0,91210.0,0.00081245]
[1763647448990,0.05210249,91231.0,91210.0,0.00081245]
[1763647449199,0.05210249,91231.0,91142.0,0.07829384]
[1763647449201,0.05210249,91231.0,91131.0,0.09802217]
[1763647449202,0.01096791,91175.0,91163.0,0.0241]
[1763647449396,0.57524247,91217.0,91174.0,0.01096803]
[1763647449604,0.05779961,91231.0,91169.0,0.01631339]
[1763647449605,0.01096346,91212.0,91198.0,0.01096515]
[1763647449811,0.01096371,91210.0,91199.0,0.21430065]
[1763647450012,0.01096358,91211.0,91200.0,0.03173706]
[1763647450228,0.01096395,91208.0,91200.0,0.03173706]
[1763647450426,0.01096431,91205.0,91200.0,0.01174]
[1763647450584,0.00012602,91211.0,91203.0,0.21928984]
[1763647450784,0.00012602,91211.0,91208.0,0.01096395]
[1763647450785,0.00376,91210.0,91208.0,0.01096395]
[1763647451133,0.00376,91210.0,91207.0,0.21927979]
[1763647451134,0.00376,91210.0,91207.0,0.01096407]
[1763647451430,0.00376,91210.0,91209.0,0.01556]
[1763647451585,0.00376,91210.0,91206.0,0.01096419]
[1763647451777,0.01472371,91210.0,91205.0,0.2302433]
[1763647451974,0.01572371,91210.0,91203.0,0.01096455]
[1763647452170,0.01572371,91210.0,91202.0,0.01096467]
[1763647452171,0.23024281,91209.0,91202.0,0.01096467]
[1763647452369,0.01572371,91210.0,91208.0,0.2192778]
[1763647452370,0.00476,91210.0,91208.0,0.2192778]
[1763647452610,0.21927803,91209.0,91203.0,0.01096455]
[1763647452797,0.21927803,91209.0,91188.0,0.0241]
[1763647453036,0.01096455,91203.0,91200.0,0.01174]
[1763647453239,0.01096419,91206.0,91195.0,0.01096551]
[1763647453533,0.23025053,91205.0,91199.0,0.23026374]
[1763647453861,0.01096467,91202.0,91197.0,0.01096527]
[1763647454152,0.01096479,91201.0,91192.0,0.01096587]
[1763647454355,0.21930633,91197.0,91193.0,0.01096575]
[1763647454560,0.00376,91197.0,91188.0,0.0592607]
[1763647454766,0.00376,91197.0,91189.0,0.01096623]
[1763647454981,0.2302794,91194.0,91186.0,0.01096659]
[1763647455175,0.01472527,91197.0,91194.0,0.23027705]
[1763647455176,0.00376,91197.0,91194.0,0.23027705]
[1763647455380,0.00376,91197.0,91195.0,0.21930846]
[1763647455760,0.00376,91197.0,91194.0,0.01096563]
[1763647455966,0.00376,91197.0,91192.0,0.01096587]
[1763647456164,0.00376,91197.0,91171.0,0.323]
[1763647456369,0.00376,91197.0,91192.0,0.01096587]
[1763647456556,0.00376,91197.0,91194.0,0.01096563]
[1763647456750,0.23403205,91197.0,91187.0,0.21932785]
[1763647456954,0.21930938,91196.0,91186.0,0.01096659]
[1763647457158,0.00376,91197.0,91192.0,0.01096587]
[1763647457516,0.00376,91197.0,91196.0,0.01556]
[1763647457718,0.00376,91197.0,91194.0,0.21931267]
[1763647457939,0.00376,91197.0,91194.0,0.01096563]
[1763647458142,0.00376,91197.0,91185.0,0.01096671]
[1763647458353,0.21932201,91191.0,91184.0,0.01096683]
[1763647458545,0.21932201,91191.0,91177.0,0.21935278]
[1763647458546,0.21933432,91185.0,91177.0,0.21935278]
[1763647458751,0.21933432,91185.0,91176.0,0.02270779]
[1763647458752,0.21933368,91186.0,91176.0,0.02270779]
[1763647458881,0.21932256,91190.0,91185.0,0.01096671]
[1763647459100,0.01096539,91196.0,91187.0,0.23029564]
[1763647459302,0.21928519,91206.0,91199.0,0.01096503]
[1763647459542,0.21928945,91204.0,91199.0,0.01556]
[1763647459713,0.00376,91205.0,91201.0,0.23025919]
[1763647459915,0.02008569,91204.0,91202.0,0.01096467]
[1763647460154,0.00376,91205.0,91199.0,0.0241]
[1763647460382,0.01096491,91200.0,91190.0,0.01096611]
[1763647460605,0.01096443,91204.0,91196.0,0.23027205]
[1763647460810,0.00376,91205.0,91193.0,0.01096575]
[1763647460981,0.03117077,91205.0,91199.0,0.01096503]
[1763647461181,0.01096479,91201.0,91187.0,0.01096647]
[1763647461404,0.22028988,91204.0,91197.0,0.01096527]
[1763647461596,0.01096491,91200.0,91182.0,0.0241]
[1763647461898,0.01096563,91194.0,91186.0,0.01096659]
[1763647462100,0.21931805,91192.0,91187.0,0.01096647]
[1763647462317,0.01096527,91197.0,91188.0,0.01096635]
[1763647462512,0.02532191,91213.0,91192.0,0.01096587]
[1763647462684,0.01096539,91196.0,91186.0,0.01096659]
[1763647462851,0.21931881,91192.0,91187.0,0.01096647]
[1763647463061,0.01096587,91192.0,91186.0,0.01096659]
[1763647463261,0.01096611,91190.0,91184.0,0.0241]
[1763647463513,0.00376,91191.0,91188.0,0.2193271]
[1763647463725,0.21932229,91190.0,91189.0,0.02000477]
[1763647463922,0.21932229,91190.0,91176.0,0.01174]
[1763647463923,0.21934707,91180.0,91176.0,0.01174]
[1763647464225,0.01096695,91183.0,91176.0,0.01174]
[1763647464226,0.2193512,91178.0,91176.0,0.01174]
[1763647464429,0.00376,91178.0,91177.0,0.0241]
[1763647464572,0.00376,91178.0,91172.0,0.01096827]
[1763647464769,0.22311178,91178.0,91168.0,0.01096876]
[1763647465013,0.00376,91178.0,91167.0,0.01096888]
[1763647465187,0.00388595,91178.0,91177.0,0.01556]
[1763647465404,0.00012595,91178.0,91177.0,0.03966]
[1763647465586,0.00388595,91178.0,91177.0,0.06125685]
[1763647465769,0.21928157,91207.0,91193.0,0.01096575]
[1763647465968,0.01096443,91204.0,91193.0,0.01096575]
[1763647466168,0.21930521,91198.0,91190.0,0.01096611]
[1763647466382,0.02011399,91197.0,91183.0,0.23030464]
[1763647466603,0.01096503,91199.0,91190.0,0.2193221]
[1763647466804,0.21931988,91191.0,91180.0,0.01096731]